[Event "Vienna Championship-B 2022"]
[Site "Vienna"]
[Date "2022.09.24"]
[Round "8.1"]
[White "Wagner, Leopold Franziskus"]
[Black "Kummer, Helmut"]
[Result "1/2-1/2"]
[ECO "C49"]
[WhiteElo "2201"]
[BlackElo "2203"]
[Annotator "TA"]
[PlyCount "59"]
[EventDate "2022.09.17"]
[EventType "swiss"]
[EventCountry "AUT"]
[SourceTitle "playchess.com"]
[Source "ChessBase"]
[SourceQuality "1"]
[TimeControl "5400+30"]

{[%evp 15,59,16,18,-20,-17,-14,-11,-50,-58,-51,-4,-19,-17,-28,-14,-43,-13,-14,-15,0,6,-11,-14,-20,-14,-39,-9,-10,-9,-25,0,-19,0,-17,0,-41,-41,-45,-11,-16,0,-10,0,-4,0,-1]} 1. e4 {[%emt 0:00:18]} e5 {[%emt 0:00:43]} 2. Nf3 {[%emt 0:00:05]} Nc6 {[%emt 0:00:37]} 3. Bb5 {[%emt 0:00:05]} Nf6 {[%emt 0:00:51]} 4. Nc3 {[%emt 0:00:31]} Bb4 {[%emt 0:00:25]} 5. O-O {[%emt 0:00:24]} O-O {[%emt 0:05:30]} 6. d3 {[%emt 0:00:37]} d6 {[%emt 0:06:07]} 7. Bg5 {[%emt 0:00:15]} Bxc3 {[%emt 0:05:51]} 8. bxc3 {[%emt 0:00:05]} h6 $1 {[%emt 0:04:33][%mdl 4] now scores much better than the old 8...Qe7.} 9. Bxf6 {[%emt 0:00:39] C49: Four Knights: 4 Bb5 Bb4.} Qxf6 {[%emt 0:00:07]} 10. Bxc6 {[%emt 0:00:02]} bxc6 {[%emt 0:00:07]} 11. Qe2 {[%emt 0:00:24]} Bg4 {[%emt 0:05:50]} 12. h3 {[%emt 0:00:11]} Be6 {[%emt 0:03:01] [#]} (12... Bxf3 $15 {feels stronger.} 13. Qxf3 Qxf3 14. gxf3 Rab8) 13. Nd2 $146 {[%emt 0:04:16]} ({Predecessor:} 13. a3 Rfb8 14. Rfb1 Rb6 15. Qe3 Rab8 16. Nd2 c5 17. Rxb6 axb6 18. c4 Ra8 19. Nb1 {0-1 (61) Piper,S (2057)-Ociepka,A (2146) England 2013}) 13... c5 {[%emt 0:00:46]} 14. Qe3 {[%emt 0:04:22]} Rab8 {[%emt 0:02:02]} 15. c4 {[%emt 0:04:14]} Rb6 {[%emt 0:01:47]} 16. Rfb1 {[%emt 0:01:16]} Rfb8 {[%emt 0:00:36]} 17. Rb3 {[%emt 0:00:14]} Qg6 {[%emt 0:15:25]} 18. Rab1 {[%emt 0:04:40]} Bd7 {[%emt 0:05:13]} 19. Rc1 {[%emt 0:03:55]} Bc6 {[%emt 0:05:21]} 20. Qg3 {[%emt 0:05:20]} Kh7 {[%emt 0:03:19][%cal Bg8h7,Bh7g6,Bg6f6,Bf6e6,Be6d7][%mdl 32]} 21. Qxg6+ {[%emt 0:01:19]} Kxg6 {[%emt 0:00:06]} 22. f3 {[%emt 0:00:35]} Kf6 {[%emt 0:03:42]} 23. Kf2 {[%emt 0:01:15]} Ke6 {[%emt 0:01:05]} 24. Ke3 {[%emt 0:01:38]} g6 {[%emt 0:01:12]} 25. Nf1 {[%emt 0:05:47]} f5 {[%emt 0:01:00]} 26. Kd2 {[%emt 0:01:31]} Rf8 {[%emt 0:01:25]} 27. Ne3 {[%emt 0:01:11] The position is equal.} Kd7 {[%emt 0:00:59]} 28. Ke2 {[%emt 0:01:14]} Ra6 {[%emt 0:01:51]} 29. Rb2 {[%emt 0:00:22]} Rb6 {[%emt 0:01:29]} 30. Rb3 {[%emt 0:00:05] Weighted Error Value: White=0.13 (very precise) /Black=0.14 (very precise)} 1/2-1/2

[Event "Vienna Championship-B 2022"]
[Site "Vienna"]
[Date "2022.09.24"]
[Round "8.4"]
[White "Ginther, Tobias"]
[Black "Pavlov, Alexander"]
[Result "0-1"]
[ECO "C87"]
[WhiteElo "1766"]
[BlackElo "1751"]
[Annotator "NA RC COMBH"]
[PlyCount "60"]
[EventDate "2022.09.17"]
[EventType "swiss"]
[EventCountry "AUT"]
[SourceTitle "playchess.com"]
[Source "ChessBase"]
[SourceQuality "1"]
[TimeControl "5400+30"]

1. e4 {[%emt 0:00:09]} e5 {[%emt 0:00:07]} 2. Nf3 {[%emt 0:00:16]} Nc6 {[%emt 0:00:06]} 3. Bb5 {[%emt 0:00:23]} a6 {[%emt 0:00:20]} 4. Ba4 {[%emt 0:00:08]} Nf6 {[%emt 0:00:35]} 5. O-O {[%emt 0:00:21]} d6 {[%emt 0:00:05]} 6. Re1 {[%emt 0:02:05]} Be7 {[%emt 0:01:35]} 7. c3 {[%emt 0:01:18]} O-O {[%emt 0:00:31]} 8. h3 {[%emt 0:01:19]} h6 {[%emt 0:02:13]} 9. d4 {[%emt 0:01:19]} Nh7 {[%emt 0:02:46]} 10. Bxc6 {[%emt 0:05:42]} bxc6 {[%emt 0:00:07]} 11. dxe5 {[%emt 0:00:26]} Ng5 {[%emt 0:05:48]} 12. Nxg5 {[%emt 0:02:46]} Bxg5 {[%emt 0:00:05]} 13. Bxg5 {[%emt 0:01:00]} Qxg5 {[%emt 0:00:48]} 14. exd6 {[%emt 0:01:04]} Bxh3 {[%emt 1:22:24]} 15. Qf3 {[%emt 0:00:20]} Bg4 {[%emt 0:00:00]} 16. Qg3 {[%emt 0:01:01]} cxd6 {[%emt 0:00:00]} 17. Qxd6 {[%emt 0:01:07]} f5 {[%emt 0:00:00]} 18. Qxc6 {[%emt 0:04:05]} Bf3 {[%emt 0:00:00]} 19. Qc4+ {[%emt 0:00:45]} Kh8 {[%emt 0:00:00]} 20. Qf1 {[%emt 0:00:08]} fxe4 {[%emt 0:00:00]} 21. Re3 {[%emt 0:04:20]} Rad8 {[%emt 0:00:00]} 22. Na3 {[%emt 0:02:52]} Rf4 {[%emt 0:00:00]} 23. g3 {[%emt 0:03:04]} Qh5 {[%emt 0:00:00]} 24. Rxf3 {[%emt 0:00:25]} Rxf3 {[%emt 0:00:00]} 25. Qg2 {[%emt 0:07:49]} Rd2 {[%emt 0:00:00]} 26. Nc4 {[%emt 0:01:57]} Rdxf2 {[%emt 0:00:00]} 27. Qxf2 {[%emt 0:00:16]} Rxf2 {[%emt 0:00:00]} 28. Kxf2 {[%emt 0:00:05]} Qf3+ {[%emt 0:00:00]} 29. Kg1 {[%emt 0:00:12]} Qxg3+ {[%emt 0:00:00]} 30. Kh1 {[%emt 0:00:16]} e3 {[%emt 0:00:00]} 0-1

[Event "Vienna Championship-B 2022"]
[Site "Vienna"]
[Date "2022.09.24"]
[Round "8.6"]
[White "Schwabeneder, Alois"]
[Black "Hirsch, Adolf Jun."]
[Result "0-1"]
[ECO "C00"]
[WhiteElo "1911"]
[BlackElo "1731"]
[Annotator "TA"]
[PlyCount "68"]
[EventDate "2022.09.17"]
[EventType "swiss"]
[EventCountry "AUT"]
[SourceTitle "playchess.com"]
[Source "ChessBase"]
[SourceQuality "1"]
[TimeControl "5400+30"]

{[%evp 13,68,0,0,-18,-12,-24,34,0,0,0,37,-11,41,-8,3,6,59,14,14,16,14,12,21,20,55,25,38,17,33,0,45,37,88,70,90,93,109,125,393,4,14,26,42,38,86,86,134,41,131,138,120,143,143,127,258,-1110,-1091]} 1. e4 {[%emt 0:00:04]} e6 {[%emt 0:00:05]} 2. Qe2 {[%emt 0:01:13]} c5 {[%emt 0:00:45]} 3. g3 {[%emt 0:00:29]} Nc6 {[%emt 0:00:18]} 4. c3 {[%emt 0:00:21]} g6 {[%emt 0:02:44]} 5. Bg2 {[%emt 0:00:10]} Bg7 {[%emt 0:00:08]} 6. Nf3 {[%emt 0:00:20]} Nge7 {[%emt 0:00:53]} 7. O-O {[%emt 0:00:12]} O-O {[%emt 0:00:22]} 8. Rd1 {[%emt 0:00:26] C00: French: Unusual White 2nd moves.} d5 {[%emt 0:02:52]} 9. d3 {[%emt 0:00:17]} d4 {[%emt 0:07:27]} ({Black should play} 9... e5 $11) 10. cxd4 {[%emt 0:05:58] White is slightly better.} Nxd4 {[%emt 0:00:32]} 11. Nxd4 {[%emt 0:00:12] [#]} cxd4 $146 {[%emt 0:00:28]} ({Predecessor:} 11... Bxd4 12. Nd2 Rb8 13. Nb3 Nc6 14. Bh6 Re8 15. Rac1 b6 16. Nxd4 Nxd4 17. Qe3 e5 {1-0 (41) Pokusaev,V (2230)-Vetryansky,V (2220) Saratov 2009}) 12. f4 {[%emt 0:01:17]} (12. e5 $14) 12... Bd7 {[%emt 0:03:44]} (12... e5 $11) 13. Nd2 {[%emt 0:02:45]} (13. e5 $14) 13... Rc8 {[%emt 0:01:47]} 14. Nc4 {[%emt 0:01:21][%cal Bd2c4,Bc4e5,Be5f3][%mdl 32]} Bc6 {[%emt 0:02:20]} (14... e5 $11) 15. b3 {[%emt 0:01:12]} b5 {[%emt 0:05:06]} 16. Ne5 {[%emt 0:00:44]} Ba8 {[%emt 0:01:03]} 17. Ba3 {[%emt 0:00:45]} Re8 {[%emt 0:00:07]} 18. Rac1 $36 {[%emt 0:01:35][%mdl 2048] Black is under pressure.} f6 {[%emt 0:08:06]} 19. Nf3 {[%emt 0:04:33]} Nc6 {[%emt 0:10:16]} 20. Bh3 {[%emt 0:04:50]} f5 {[%emt 0:02:18]} 21. e5 {[%emt 0:02:55]} b4 {[%emt 0:06:05]} 22. Bb2 {[%emt 0:00:38]} Qb6 {[%emt 0:00:42]} (22... Qa5 $14) 23. Bg2 $16 {[%emt 0:00:51]} Bf8 {[%emt 0:02:19]} 24. Rc4 {[%emt 0:04:28]} Bc5 {[%emt 0:11:11]} 25. Rdc1 {[%emt 0:02:56]} Ne7 $2 {[%emt 0:00:17][%mdl 8192]} (25... Na5 $16) 26. Kh1 $2 {[%emt 0:00:59]} (26. Qc2 $18) 26... Bd5 $11 {[%emt 0:31:35]} 27. R4c2 {[%emt 0:00:22]} (27. Nxd4 $2 Bxd4 28. Rxc8 Rxc8 $19) 27... Bb7 {[%emt 0:00:00]} 28. Qf2 {[%emt 0:01:12][%cal Rb2d4]} Red8 {[%emt 0:00:00]} (28... Nd5 $14) 29. Ng5 $16 {[%emt 0:08:43][%cal Oc2c5] And now Rxc5! would win.} Bxg2+ {[%emt 0:00:00]} (29... Bd5 $142) 30. Kxg2 {[%emt 0:00:10]} (30. Qxg2 $16 {[%cal Oc2c5] Black must now prevent Rxc5!} Rd7 {[#]} 31. Nxe6 $1 {[%mdl 512]} Qxe6 32. Rxc5 Rxc5 33. Rxc5) 30... h6 {[%emt 0:00:00] [#]} ({Better is} 30... Nd5 $1 $14) 31. Nxe6 $1 {[%emt 0:01:45][%mdl 512]} Qxe6 {[%emt 0:00:00]} 32. Rxc5 {[%emt 0:00:20]} Rxc5 {[%emt 0:00:00]} 33. Rxc5 {[%emt 0:00:06] Hoping for Qc2.} Rc8 {[%emt 0:00:00]} (33... Qa6 $16) 34. Qc2 $4 {[%emt 0:00:59][%mdl 8192]} ({Much less strong is} 34. Qxd4 Rxc5 35. Qxc5 Qc6+ 36. Qxc6 Nxc6 $18) (34. Rxc8+ $18 Qxc8 35. Bxd4 (35. Qxd4 Qc2+ 36. Kh3 Qe2 $16)) 34... Qd5+ $1 {[%emt 0:00:00][%mdl 64] Pin, Double Attack.  Weighted Error Value: White=0.69/Black=0.45} 0-1

[Event "Vienna Championship-B 2022"]
[Site "Vienna"]
[Date "2022.09.24"]
[Round "8.8"]
[White "Krejcar, Walter"]
[Black "Wickramasinghe, Nathaniel"]
[Result "0-1"]
[ECO "B08"]
[WhiteElo "1770"]
[BlackElo "1760"]
[Annotator "NA RC COMBH"]
[PlyCount "100"]
[EventDate "2022.09.17"]
[EventType "swiss"]
[EventCountry "AUT"]
[SourceTitle "playchess.com"]
[Source "ChessBase"]
[SourceQuality "1"]
[TimeControl "5400+30"]

1. d4 {[%emt 0:03:12]} Nf6 {[%emt 0:00:06]} 2. Bf4 {[%emt 0:00:31]} g6 {[%emt 0:00:10]} 3. Nc3 {[%emt 0:00:30]} Bg7 {[%emt 0:00:06]} 4. e4 {[%emt 0:00:10]} d6 {[%emt 0:00:15]} 5. Be2 {[%emt 0:02:42]} O-O {[%emt 0:00:35]} 6. Nf3 {[%emt 0:00:59]} Nbd7 {[%emt 0:01:26]} 7. Qd2 {[%emt 0:00:52]} e5 {[%emt 0:08:10]} 8. dxe5 {[%emt 0:00:20]} dxe5 {[%emt 0:00:06]} 9. Nxe5 {[%emt 0:02:13]} Nxe4 {[%emt 0:02:07]} 10. Nxe4 {[%emt 0:00:29]} Nxe5 {[%emt 0:00:09]} 11. O-O-O {[%emt 0:01:27]} Bf5 {[%emt 0:03:28]} 12. Qxd8 {[%emt 0:00:42]} Rfxd8 {[%emt 0:00:08]} 13. Ng3 {[%emt 0:00:25]} Be6 {[%emt 0:00:06]} 14. Kb1 {[%emt 0:01:03]} c6 {[%emt 0:00:51]} 15. h4 {[%emt 0:00:41]} b5 {[%emt 0:00:12]} 16. h5 {[%emt 0:00:23]} a5 {[%emt 0:00:47]} 17. hxg6 {[%emt 0:00:16]} hxg6 {[%emt 0:01:37]} 18. Ne4 {[%emt 0:04:23]} a4 {[%emt 0:07:05]} 19. Nc5 {[%emt 0:02:45]} Bf5 {[%emt 0:00:38]} 20. f3 {[%emt 0:03:54]} Rxd1+ {[%emt 0:07:44]} 21. Rxd1 {[%emt 0:00:21]} Re8 {[%emt 0:00:18]} 22. Ne4 {[%emt 0:02:21]} Nc4 {[%emt 0:04:51]} 23. Bxc4 {[%emt 0:02:53]} Bxe4 {[%emt 0:00:17]} 24. Bxf7+ {[%emt 0:21:16]} Kxf7 {[%emt 0:00:13]} 25. fxe4 {[%emt 0:01:41]} Rxe4 {[%emt 0:00:14]} 26. Rf1 {[%emt 0:01:53]} Ke6 {[%emt 0:00:21]} 27. c3 {[%emt 0:02:04]} Re2 {[%emt 0:01:01]} 28. g3 {[%emt 0:01:49]} b4 {[%emt 0:01:07]} 29. Rd1 {[%emt 0:01:44]} Kf5 {[%emt 0:00:35]} 30. Bd2 {[%emt 0:07:51]} bxc3 {[%emt 0:01:12]} 31. bxc3 {[%emt 0:00:46]} a3 {[%emt 0:01:29]} 32. Kc2 {[%emt 0:00:26]} Bh6 {[%emt 0:00:31]} 33. Kb3 {[%emt 0:06:04]} Bxd2 {[%emt 0:01:28]} 34. Kxa3 {[%emt 0:00:17]} Bxc3 {[%emt 0:00:14]} 35. Rd6 {[%emt 0:00:42]} Re6 {[%emt 0:01:21]} 36. Rd3 {[%emt 0:00:32]} Be5 {[%emt 0:00:34]} 37. Kb3 {[%emt 0:00:49]} Rd6 {[%emt 0:00:51]} 38. Re3 {[%emt 0:01:31]} Rd2 {[%emt 0:00:26]} 39. a4 {[%emt 0:00:16]} Rg2 {[%emt 0:00:32]} 40. Kc4 {[%emt 0:04:23]} Rxg3 {[%emt 0:00:29]} 41. Re2 {[%emt 0:00:15]} Ra3 {[%emt 0:01:31]} 42. Kc5 {[%emt 0:01:06]} Rxa4 {[%emt 0:00:15]} 43. Kxc6 {[%emt 0:00:09]} g5 {[%emt 0:00:22]} 44. Kd5 {[%emt 0:00:32]} Rd4+ {[%emt 0:00:16]} 45. Kc5 {[%emt 0:00:10]} g4 {[%emt 0:00:17]} 46. Rf2+ {[%emt 0:00:35]} Rf4 {[%emt 0:00:16]} 47. Ra2 {[%emt 0:01:24]} g3 {[%emt 0:00:19]} 48. Ra8 {[%emt 0:00:34]} g2 {[%emt 0:00:25]} 49. Rg8 {[%emt 0:00:27]} Rg4 {[%emt 0:00:13]} 50. Rf8+ {[%emt 0:00:18]} Bf6 {[%emt 0:00:10]} 0-1

[Event "Vienna Championship-B 2022"]
[Site "Vienna"]
[Date "2022.09.24"]
[Round "8.9"]
[White "Anastasakis, Georgios"]
[Black "Paseka, Christian"]
[Result "1-0"]
[ECO "B56"]
[WhiteElo "1893"]
[BlackElo "1568"]
[Annotator "NA RC COMBH"]
[PlyCount "57"]
[EventDate "2022.09.17"]
[EventType "swiss"]
[EventCountry "AUT"]
[SourceTitle "playchess.com"]
[Source "ChessBase"]
[SourceQuality "1"]
[TimeControl "5400+30"]

1. e4 {[%emt 0:00:30]} c5 {[%emt 0:00:30]} 2. Nf3 {[%emt 0:00:30]} d6 {[%emt 0:00:30]} 3. d4 {[%emt 0:00:30]} cxd4 {[%emt 0:00:30]} 4. Nxd4 {[%emt 0:00:30]} Nf6 {[%emt 0:00:30]} 5. Nc3 {[%emt 0:00:30]} Nc6 {[%emt 0:00:30]} 6. f3 {[%emt 0:00:30]} e5 {[%emt 0:00:30]} 7. Nb3 {[%emt 0:00:30]} a5 {[%emt 0:00:30]} 8. Be3 {[%emt 0:00:30]} Be6 {[%emt 0:00:30]} 9. Qd2 {[%emt 0:00:30]} Be7 {[%emt 0:00:30]} 10. O-O-O {[%emt 0:00:30]} O-O {[%emt 0:00:30]} 11. g4 {[%emt 0:00:30]} h6 {[%emt 0:00:30]} 12. h4 {[%emt 0:00:30]} Nh7 {[%emt 0:00:30]} 13. Nd5 {[%emt 0:00:30]} Bxd5 {[%emt 0:00:30]} 14. exd5 {[%emt 0:00:30]} Nb8 {[%emt 0:00:30]} 15. Bd3 {[%emt 0:00:30]} f6 {[%emt 0:00:30]} 16. Rdg1 {[%emt 0:00:30]} Nd7 {[%emt 0:00:30]} 17. Kb1 {[%emt 0:00:30]} Nc5 {[%emt 0:00:30]} 18. Nxc5 {[%emt 0:00:30]} dxc5 {[%emt 0:00:30]} 19. Bxh6 {[%emt 0:00:30]} gxh6 {[%emt 0:00:30]} 20. Qxh6 {[%emt 0:00:30]} Rf7 {[%emt 0:00:30]} 21. g5 {[%emt 0:00:30]} fxg5 {[%emt 0:00:30]} 22. hxg5 {[%emt 0:00:30]} Bxg5 {[%emt 0:00:30]} 23. Rxg5+ {[%emt 0:00:30]} Qxg5 {[%emt 0:00:30]} 24. Bxh7+ {[%emt 0:00:30]} Rxh7 {[%emt 0:00:30]} 25. Qxg5+ {[%emt 0:00:30]} Rg7 {[%emt 0:00:30]} 26. Qh6 {[%emt 0:00:30]} Rf8 {[%emt 0:00:30]} 27. Qe6+ {[%emt 0:00:30]} Rff7 {[%emt 0:00:30]} 28. d6 {[%emt 0:00:30]} b5 {[%emt 0:00:30]} 29. d7 {[%emt 0:00:30]} 1-0

[Event "Vienna Championship-B 2022"]
[Site "Vienna"]
[Date "2022.09.24"]
[Round "8.10"]
[White "Reif, Werner"]
[Black "Marinovic, Sara"]
[Result "1/2-1/2"]
[ECO "D02"]
[WhiteElo "1747"]
[BlackElo "1384"]
[Annotator "NA RC COMBH"]
[PlyCount "130"]
[EventDate "2022.09.17"]
[EventType "swiss"]
[EventCountry "AUT"]
[SourceTitle "playchess.com"]
[Source "ChessBase"]
[SourceQuality "1"]
[TimeControl "5400+30"]

1. d4 {[%emt 0:00:05]} d5 {[%emt 0:00:18]} 2. Nf3 {[%emt 0:00:06]} Nf6 {[%emt 0:00:19]} 3. c3 {[%emt 0:00:07]} c5 {[%emt 0:00:23]} 4. dxc5 {[%emt 0:00:19]} e6 {[%emt 0:01:00]} 5. Be3 {[%emt 0:03:06]} Nc6 {[%emt 0:03:39]} 6. b4 {[%emt 0:02:55]} a5 {[%emt 0:08:33]} 7. b5 {[%emt 0:02:02]} Ne7 {[%emt 0:00:15]} 8. a4 {[%emt 0:01:24]} Ng6 {[%emt 0:05:57]} 9. Nd4 {[%emt 0:09:38]} Ng4 {[%emt 0:08:14]} 10. Qc1 {[%emt 0:10:25]} Nxe3 {[%emt 0:01:18]} 11. Qxe3 {[%emt 0:00:06]} Bxc5 {[%emt 0:00:15]} 12. Qd2 {[%emt 0:00:52]} O-O {[%emt 0:01:41]} 13. e3 {[%emt 0:03:49]} Re8 {[%emt 0:06:40]} 14. g3 {[%emt 0:03:05]} Qf6 {[%emt 0:09:47]} 15. Bg2 {[%emt 0:05:59]} Ne5 {[%emt 0:06:18]} 16. O-O {[%emt 0:02:54]} Nc4 {[%emt 0:07:37]} 17. Qe2 {[%emt 0:01:23]} Rd8 {[%emt 0:03:08]} 18. Nb3 {[%emt 0:06:44]} Be7 {[%emt 0:05:39]} 19. e4 {[%emt 0:04:05]} Nb6 {[%emt 0:00:29]} 20. Qe3 {[%emt 0:06:52]} e5 {[%emt 0:05:11]} 21. exd5 {[%emt 0:02:49]} Nxd5 {[%emt 0:00:34]} 22. Qf3 {[%emt 0:00:29]} Ra7 {[%emt 0:04:59]} 23. c4 {[%emt 0:07:10]} Nb4 {[%emt 0:00:45]} 24. Qxf6 {[%emt 0:05:04]} Bxf6 {[%emt 0:00:33]} 25. Be4 {[%emt 0:00:21]} b6 {[%emt 0:00:44]} 26. Nc3 {[%emt 0:00:46]} Be6 {[%emt 0:05:39]} 27. Nd5 {[%emt 0:03:48]} Nxd5 {[%emt 0:03:02]} 28. cxd5 {[%emt 0:01:20]} Bxd5 {[%emt 0:00:11]} 29. Nd2 {[%emt 0:01:01]} Be7 {[%emt 0:02:32]} 30. Rac1 {[%emt 0:02:43]} Bxe4 {[%emt 0:01:48]} 31. Nxe4 {[%emt 0:00:21]} f5 {[%emt 0:00:13]} 32. Nc3 {[%emt 0:00:41]} Bc5 {[%emt 0:00:37]} 33. Rfd1 {[%emt 0:01:26]} Rad7 {[%emt 0:00:39]} 34. Rxd7 {[%emt 0:01:20]} Rxd7 {[%emt 0:00:02]} 35. Rd1 {[%emt 0:00:07]} Rxd1+ {[%emt 0:00:27]} 36. Nxd1 {[%emt 0:00:01]} Bd4 {[%emt 0:00:34]} 37. Kf1 {[%emt 0:00:13]} Kf7 {[%emt 0:00:38]} 38. Ke2 {[%emt 0:00:13]} Ke6 {[%emt 0:01:05]} 39. Kd3 {[%emt 0:02:10]} Kd5 {[%emt 0:00:38]} 40. Ne3+ {[%emt 0:02:24]} Bxe3 {[%emt 0:00:10]} 41. fxe3 {[%emt 0:00:05]} e4+ {[%emt 0:00:14]} 42. Kc3 {[%emt 0:00:22]} g5 {[%emt 0:02:30]} 43. h3 {[%emt 0:02:24]} Ke5 {[%emt 0:01:11]} 44. Kd2 {[%emt 0:01:47]} f4 {[%emt 0:00:13]} 45. gxf4+ {[%emt 0:00:09]} gxf4 {[%emt 0:00:07]} 46. exf4+ {[%emt 0:00:09]} Kxf4 {[%emt 0:00:05]} 47. Ke2 {[%emt 0:00:05]} Kg3 {[%emt 0:00:47]} 48. Ke3 {[%emt 0:00:26]} Kxh3 {[%emt 0:00:48]} 49. Kxe4 {[%emt 0:00:07]} Kg4 {[%emt 0:00:04]} 50. Kd5 {[%emt 0:00:36]} h5 {[%emt 0:00:11]} 51. Kc6 {[%emt 0:00:03]} h4 {[%emt 0:00:05]} 52. Kxb6 {[%emt 0:00:12]} h3 {[%emt 0:00:05]} 53. Kxa5 {[%emt 0:00:47]} h2 {[%emt 0:00:06]} 54. Kb6 {[%emt 0:01:21]} h1=Q {[%emt 0:00:12]} 55. a5 {[%emt 0:00:46]} Qh6+ {[%emt 0:00:54]} 56. Ka7 {[%emt 0:02:35]} Qh7+ {[%emt 0:01:01]} 57. Kb6 {[%emt 0:00:03]} Qg6+ {[%emt 0:00:52]} 58. Ka7 {[%emt 0:00:02]} Qf7+ {[%emt 0:01:34]} 59. Ka6 {[%emt 0:00:06]} Qc4 {[%emt 0:00:15]} 60. Kb6 {[%emt 0:00:58]} Kf5 {[%emt 0:00:59]} 61. a6 {[%emt 0:00:36]} Qe6+ {[%emt 0:00:48]} 62. Kc7 {[%emt 0:01:12]} Qc4+ {[%emt 0:00:35]} 63. Kb6 {[%emt 0:00:02]} Qd4+ {[%emt 0:00:24]} 64. Kb7 {[%emt 0:00:44]} Qd7+ {[%emt 0:00:32]} 65. Ka8 {[%emt 0:00:31]} Kg5 {[%emt 0:05:57]} 1/2-1/2

[Event "Vienna Championship-B 2022"]
[Site "Vienna"]
[Date "2022.09.24"]
[Round "8.11"]
[White "Iehl, William"]
[Black "Stadlinger, Lukas"]
[Result "0-1"]
[ECO "E61"]
[WhiteElo "1781"]
[BlackElo "1729"]
[Annotator "NA RC COMBH"]
[PlyCount "72"]
[EventDate "2022.09.17"]
[EventType "swiss"]
[EventCountry "AUT"]
[SourceTitle "playchess.com"]
[Source "ChessBase"]
[SourceQuality "1"]
[TimeControl "5400+30"]

1. Nf3 {[%emt 0:00:02]} Nf6 {[%emt 0:01:14]} 2. c4 {[%emt 0:00:01]} g6 {[%emt 0:00:08]} 3. d4 {[%emt 0:00:01]} Bg7 {[%emt 0:00:40]} 4. Nc3 {[%emt 0:00:02]} O-O {[%emt 0:00:49]} 5. Bg5 {[%emt 0:00:01]} d6 {[%emt 0:00:22]} 6. e3 {[%emt 0:00:02]} c5 {[%emt 0:00:48]} 7. Be2 {[%emt 0:01:12]} h6 {[%emt 0:02:06]} 8. Bh4 {[%emt 0:00:03]} g5 {[%emt 0:02:14]} 9. Bg3 {[%emt 0:00:02]} Nh5 {[%emt 0:02:08]} 10. Qc2 {[%emt 0:01:11]} f5 {[%emt 0:04:18]} 11. Rd1 {[%emt 0:11:21]} Nxg3 {[%emt 0:08:50]} 12. hxg3 {[%emt 0:00:04]} Qe8 {[%emt 0:00:43]} 13. Nd5 {[%emt 0:06:12]} Na6 {[%emt 0:06:15]} 14. dxc5 {[%emt 0:26:03]} dxc5 {[%emt 0:07:02]} 15. Nxg5 {[%emt 0:22:47]} e6 {[%emt 0:11:37]} 16. Bh5 {[%emt 0:00:55]} Qd8 {[%emt 0:00:32]} 17. Nxe6 {[%emt 0:04:39]} Bxe6 {[%emt 0:03:10]} 18. Nf4 {[%emt 0:04:44]} Qf6 {[%emt 0:05:33]} 19. Rd6 {[%emt 0:01:38]} Nc7 {[%emt 0:05:17]} 20. Nd5 {[%emt 0:05:19]} Qe5 {[%emt 0:05:09]} 21. Ne7+ {[%emt 0:00:15]} Kh7 {[%emt 0:00:14]} 22. Rd2 {[%emt 0:03:11]} Rf6 {[%emt 0:04:14]} 23. Qb3 {[%emt 0:01:52]} Bf7 {[%emt 0:06:26]} 24. Nd5 {[%emt 0:03:14]} Nxd5 {[%emt 0:01:08]} 25. cxd5 {[%emt 0:03:29]} Rb6 {[%emt 0:01:23]} 26. Qc4 {[%emt 0:02:17]} Bg8 {[%emt 0:02:58]} 27. O-O {[%emt 0:00:57]} Qd6 {[%emt 0:01:17]} 28. b3 {[%emt 0:00:24]} Rd8 {[%emt 0:00:35]} 29. Rfd1 {[%emt 0:01:22]} Rb4 {[%emt 0:03:51]} 30. Qc2 {[%emt 0:00:15]} Qf8 {[%emt 0:00:56]} 31. d6 {[%emt 0:00:33]} b6 {[%emt 0:00:12]} 32. Rd3 {[%emt 0:01:01]} c4 {[%emt 0:00:28]} 33. bxc4 {[%emt 0:00:56]} Rxc4 {[%emt 0:00:06]} 34. Qb1 {[%emt 0:00:45]} Rc6 {[%emt 0:00:37]} 35. d7 {[%emt 0:00:20]} Rc7 {[%emt 0:00:27]} 36. Qb5 {[%emt 0:00:09]} Bc4 {[%emt 0:01:28]} 0-1